[Event "*** Titled Tuesday Blitz"]
[Site "Chess.com"]
[Date "2020.11.10"]
[Round "4"]
[White "juancruzarias"]
[Black "kamilianin235"]
[Result "1-0"]
[WhiteElo "2577"]
[BlackElo "2172"]
[TimeControl "180+1"]
[EndTime "10:44:38 PST"]
[Termination "juancruzarias won by resignation"]

1. d4 {[%clk 0:03:00.9]} 1... d5 {[%clk 0:02:58.6]} 2. c4 {[%clk 0:03:00.4]}
2... dxc4 {[%clk 0:02:57.2]} 3. Nf3 {[%clk 0:02:59.1]} 3... c5 {[%clk
0:02:55.5]} 4. e3 {[%clk 0:02:50.6]} 4... cxd4 {[%clk 0:02:33.1]} 5. exd4 {[%clk
0:02:48.1]} 5... Nf6 {[%clk 0:02:32]} 6. Bxc4 {[%clk 0:02:46.3]} 6... e6 {[%clk
0:02:32.2]} 7. O-O {[%clk 0:02:38]} 7... Nc6 {[%clk 0:02:30.6]} 8. Nc3 {[%clk
0:02:38.2]} 8... Nb4 {[%clk 0:02:28.3]} 9. a3 {[%clk 0:02:32.9]} 9... Nbd5
{[%clk 0:02:27]} 10. Ne5 {[%clk 0:02:31.7]} 10... Be7 {[%clk 0:02:25.1]} 11.
Nxd5 {[%clk 0:02:28.8]} 11... Nxd5 {[%clk 0:02:23.7]} 12. Bb5+ {[%clk
0:02:27.4]} 12... Kf8 {[%clk 0:02:18.6]} 13. Qh5 {[%clk 0:02:19.8]} 13... g6
{[%clk 0:02:11.7]} 14. Bh6+ {[%clk 0:02:17.2]} 14... Kg8 {[%clk 0:02:10.6]} 15.
Qf3 {[%clk 0:02:13.5]} 15... Nf6 {[%clk 0:02:05.1]} 16. Rad1 {[%clk 0:02:09.7]}
16... Bf8 {[%clk 0:01:53.4]} 17. Bg5 {[%clk 0:02:06.1]} 17... Be7 {[%clk
0:01:49.8]} 18. Rfe1 {[%clk 0:02:04]} 18... Kg7 {[%clk 0:01:40.2]} 19. Bc4
{[%clk 0:01:48.8]} 19... Qc7 {[%clk 0:01:28.3]} 20. Bf4 {[%clk 0:01:31.4]} 20...
Qb6 {[%clk 0:01:23.1]} 21. Qe3 {[%clk 0:01:17.7]} 21... Rd8 {[%clk 0:01:19.5]}
22. Bh6+ {[%clk 0:01:16.8]} 22... Kg8 {[%clk 0:01:17.7]} 23. b4 {[%clk
0:01:11.4]} 23... a5 {[%clk 0:01:01.9]} 24. Qh3 {[%clk 0:00:36]} 24... Nd5
{[%clk 0:00:52.3]} 25. bxa5 {[%clk 0:00:27.7]} 25... Rxa5 {[%clk 0:00:40.7]} 26.
Bd2 {[%clk 0:00:28.2]} 26... Rxa3 {[%clk 0:00:37.4]} 27. Qg4 {[%clk 0:00:23.6]}
27... Ra4 {[%clk 0:00:26.6]} 28. Rb1 {[%clk 0:00:21]} 28... Qc7 {[%clk
0:00:24.9]} 29. Bb3 {[%clk 0:00:20.7]} 29... Ra8 {[%clk 0:00:21.3]} 30. Qf3
{[%clk 0:00:21]} 30... Bf8 {[%clk 0:00:19.6]} 31. Rec1 {[%clk 0:00:20]} 31...
Qe7 {[%clk 0:00:18.8]} 32. Bxd5 {[%clk 0:00:18.9]} 32... Rxd5 {[%clk 0:00:18.4]}
33. Bb4 {[%clk 0:00:19.2]} 33... Qe8 {[%clk 0:00:18.1]} 34. Bxf8 {[%clk
0:00:18.9]} 34... Kxf8 {[%clk 0:00:17.2]} 35. Ng4 {[%clk 0:00:19.4]} 35... Rf5
{[%clk 0:00:15.1]} 36. Qe3 {[%clk 0:00:18.8]} 36... Kg7 {[%clk 0:00:11.7]} 37.
Qh6+ {[%clk 0:00:14.7]} 37... Kg8 {[%clk 0:00:11.5]} 38. Rc7 {[%clk 0:00:14.4]}
38... Bd7 {[%clk 0:00:09.5]} 39. h3 {[%clk 0:00:14.4]} 39... Bc6 {[%clk
0:00:08.2]} 40. Ne5 {[%clk 0:00:13.7]} 40... Qd8 {[%clk 0:00:06.7]} 41. Rxc6
{[%clk 0:00:08]} 41... bxc6 {[%clk 0:00:06.2]} 42. Rb7 {[%clk 0:00:08.5]} 42...
Qf8 {[%clk 0:00:05.2]} 43. Qxf8+ {[%clk 0:00:07.6]} 43... Rxf8 {[%clk
0:00:05.2]} 44. Nxc6 {[%clk 0:00:08.5]} 44... Rd5 {[%clk 0:00:04.2]} 45. Ne7+
{[%clk 0:00:08.8]} 45... Kg7 {[%clk 0:00:05.1]} 46. Nxd5 {[%clk 0:00:09.7]}
46... exd5 {[%clk 0:00:06]} 47. Rd7 {[%clk 0:00:10.5]} 47... Re8 {[%clk
0:00:06.5]} 48. Rxd5 {[%clk 0:00:11]} 48... Re1+ {[%clk 0:00:07.4]} 49. Kh2
{[%clk 0:00:11.5]} 49... Re2 {[%clk 0:00:08.3]} 50. Kg3 {[%clk 0:00:11.9]} 50...
Rd2 {[%clk 0:00:09.2]} 51. Rd7 {[%clk 0:00:11.7]} 51... Rd3+ {[%clk 0:00:10.1]}
52. Kf4 {[%clk 0:00:11.9]} 52... Kf6 {[%clk 0:00:10.5]} 53. Ke4 {[%clk
0:00:12.1]} 53... Rd2 {[%clk 0:00:10.7]} 54. Ke3 {[%clk 0:00:12.5]} 54... Rd1
{[%clk 0:00:10.6]} 55. Rd6+ {[%clk 0:00:12.9]} 55... Ke7 {[%clk 0:00:10.3]} 56.
Rd5 {[%clk 0:00:13]} 56... Ke6 {[%clk 0:00:10.5]} 57. Re5+ {[%clk 0:00:13.1]}
57... Kf6 {[%clk 0:00:10.8]} 58. g3 {[%clk 0:00:13.6]} 58... Rh1 {[%clk
0:00:10.5]} 59. h4 {[%clk 0:00:14]} 59... Rd1 {[%clk 0:00:10.9]} 60. Rb5 {[%clk
0:00:13.3]} 60... Re1+ {[%clk 0:00:10.1]} 61. Kf3 {[%clk 0:00:13.1]} 61... Rd1
{[%clk 0:00:09.9]} 62. Rb4 {[%clk 0:00:13.6]} 62... Ke6 {[%clk 0:00:09.4]} 63.
Ke2 {[%clk 0:00:14.1]} 63... Rc1 {[%clk 0:00:08.1]} 64. Rb6+ {[%clk 0:00:13.1]}
64... Kd5 {[%clk 0:00:05.1]} 65. Rb7 {[%clk 0:00:13.3]} 65... Ke6 {[%clk
0:00:05]} 66. d5+ {[%clk 0:00:12.7]} 66... Kf6 {[%clk 0:00:03.3]} 67. Rb2 {[%clk
0:00:12.9]} 67... Rc7 {[%clk 0:00:02.4]} 68. Rd2 {[%clk 0:00:13.1]} 68... Rd7
{[%clk 0:00:02.6]} 69. Ke3 {[%clk 0:00:13.4]} 69... Ke5 {[%clk 0:00:03.1]} 70.
f4+ {[%clk 0:00:13.9]} 70... Kd6 {[%clk 0:00:03.3]} 71. Kd4 {[%clk 0:00:13.9]}
71... f5 {[%clk 0:00:02.9]} 72. Rc2 {[%clk 0:00:14]} 72... Re7 {[%clk
0:00:03.3]} 73. Rc6+ {[%clk 0:00:14.1]} 73... Kd7 {[%clk 0:00:03.9]} 74. Ra6
{[%clk 0:00:12.3]} 74... Re4+ {[%clk 0:00:04.1]} 75. Kc5 {[%clk 0:00:12.5]}
75... Re7 {[%clk 0:00:02.7]} 76. Ra7+ {[%clk 0:00:12.8]} 76... Kd8 {[%clk
0:00:02.6]} 77. Rxe7 {[%clk 0:00:13.7]} 77... Kxe7 {[%clk 0:00:03.5]} 78. Kc6
{[%clk 0:00:14.6]} 78... Ke8 {[%clk 0:00:02.1]} 79. Kd6 {[%clk 0:00:15.5]} 79...
Kd8 {[%clk 0:00:02.3]} 80. Ke6 {[%clk 0:00:16.4]} 80... Ke8 {[%clk 0:00:02.7]}
81. d6 {[%clk 0:00:16.9]} 81... Kd8 {[%clk 0:00:02.7]} 82. Kf6 {[%clk
0:00:16.6]} 82... Kd7 {[%clk 0:00:02.2]} 83. Kg7 {[%clk 0:00:17.1]} 83... Kxd6
{[%clk 0:00:03.1]} 84. Kxh7 {[%clk 0:00:17.6]} 84... Ke6 {[%clk 0:00:04]} 85.
Kxg6 {[%clk 0:00:17.9]} 1-0

[Event "*** Titled Tuesday Blitz"]
[Site "Chess.com"]
[Date "2020.11.10"]
[Round "4"]
[White "sara_khm"]
[Black "ViktoriyaTarasova"]
[Result "1-0"]
[WhiteElo "2590"]
[BlackElo "2270"]
[TimeControl "180+1"]
[EndTime "10:44:45 PST"]
[Termination "sara_khm won by resignation"]

1. d4 {[%clk 0:01:53.8]} 1... Nf6 {[%clk 0:02:58.9]} 2. Nf3 {[%clk 0:01:54.7]}
2... e6 {[%clk 0:02:57.7]} 3. c4 {[%clk 0:01:54.7]} 3... b6 {[%clk 0:02:57]} 4.
a3 {[%clk 0:01:53.4]} 4... Bb7 {[%clk 0:02:55.6]} 5. Nc3 {[%clk 0:01:50.7]} 5...
d5 {[%clk 0:02:55.5]} 6. cxd5 {[%clk 0:01:50]} 6... exd5 {[%clk 0:02:51.7]} 7.
Bf4 {[%clk 0:01:48.4]} 7... a6 {[%clk 0:02:30.6]} 8. Rc1 {[%clk 0:01:47.1]} 8...
Bd6 {[%clk 0:02:13.6]} 9. Bxd6 {[%clk 0:01:46.1]} 9... Qxd6 {[%clk 0:01:59.8]}
10. e3 {[%clk 0:01:46.2]} 10... O-O {[%clk 0:01:59]} 11. Bd3 {[%clk 0:01:44.8]}
11... Nbd7 {[%clk 0:01:59.1]} 12. O-O {[%clk 0:01:44.4]} 12... Rac8 {[%clk
0:01:51.5]} 13. b4 {[%clk 0:01:41.9]} 13... Ne4 {[%clk 0:01:46.5]} 14. Qe2
{[%clk 0:01:27.7]} 14... b5 {[%clk 0:01:39.4]} 15. Bxe4 {[%clk 0:01:26.9]} 15...
dxe4 {[%clk 0:01:39]} 16. Nd2 {[%clk 0:01:27.4]} 16... f5 {[%clk 0:01:32.6]} 17.
Nb3 {[%clk 0:01:26.3]} 17... f4 {[%clk 0:01:18.5]} 18. Nc5 {[%clk 0:01:19.6]}
18... Nxc5 {[%clk 0:01:17.8]} 19. dxc5 {[%clk 0:01:12.6]} 19... Qg6 {[%clk
0:01:17.5]} 20. exf4 {[%clk 0:01:12.3]} 20... Rxf4 {[%clk 0:01:12.6]} 21. Nd1
{[%clk 0:01:03.8]} 21... Rcf8 {[%clk 0:00:35.5]} 22. Ne3 {[%clk 0:01:02.7]}
22... Bc6 {[%clk 0:00:36]} 23. Rcd1 {[%clk 0:00:59]} 23... Kh8 {[%clk
0:00:33.5]} 24. Rd4 {[%clk 0:00:58.7]} 24... Qf7 {[%clk 0:00:28.6]} 25. Rd2
{[%clk 0:00:49.6]} 25... Qg6 {[%clk 0:00:24.1]} 26. Rfd1 {[%clk 0:00:44.2]}
26... h6 {[%clk 0:00:21.6]} 27. Rd8 {[%clk 0:00:42.5]} 27... Kh7 {[%clk
0:00:21.5]} 28. Rxf8 {[%clk 0:00:42.1]} 28... Rxf8 {[%clk 0:00:21.1]} 29. Qg4
{[%clk 0:00:40.8]} 29... Qxg4 {[%clk 0:00:17.1]} 30. Nxg4 {[%clk 0:00:40.8]}
30... Re8 {[%clk 0:00:14.4]} 31. h4 {[%clk 0:00:37.8]} 31... Kg6 {[%clk
0:00:14.5]} 32. Ne3 {[%clk 0:00:36.2]} 32... Kf6 {[%clk 0:00:14.2]} 33. Kf1
{[%clk 0:00:31]} 33... Ke5 {[%clk 0:00:10.3]} 34. Ng4+ {[%clk 0:00:29.5]} 34...
Ke6 {[%clk 0:00:10.4]} 35. g3 {[%clk 0:00:28.2]} 35... h5 {[%clk 0:00:10.7]} 36.
Ne3 {[%clk 0:00:28]} 36... Ke5 {[%clk 0:00:11.2]} 37. Ke2 {[%clk 0:00:26.7]}
37... g6 {[%clk 0:00:11.6]} 38. Rd2 {[%clk 0:00:26.4]} 38... Ra8 {[%clk
0:00:11.9]} 39. Ng2 {[%clk 0:00:25.8]} 39... a5 {[%clk 0:00:11.8]} 40. Nf4
{[%clk 0:00:26.2]} 40... Kf6 {[%clk 0:00:11.7]} 41. Rd4 {[%clk 0:00:24.4]} 41...
axb4 {[%clk 0:00:11.4]} 42. axb4 {[%clk 0:00:24.8]} 42... Ra2+ {[%clk
0:00:11.8]} 43. Rd2 {[%clk 0:00:24.5]} 43... Ra4 {[%clk 0:00:07.2]} 44. Rd4
{[%clk 0:00:21.7]} 44... Ra2+ {[%clk 0:00:07]} 45. Ke1 {[%clk 0:00:20.3]} 45...
Ra1+ {[%clk 0:00:06.7]} 46. Rd1 {[%clk 0:00:20.3]} 46... Ra4 {[%clk 0:00:06]}
47. Rb1 {[%clk 0:00:20.7]} 47... Ra2 {[%clk 0:00:05.9]} 48. Rb3 {[%clk
0:00:19.9]} 48... Rc2 {[%clk 0:00:04.7]} 49. Kf1 {[%clk 0:00:19.6]} 49... Rd2
{[%clk 0:00:04.4]} 50. Ng2 {[%clk 0:00:19.1]} 50... Bd7 {[%clk 0:00:04]} 51. Ne3
{[%clk 0:00:19]} 51... Be6 {[%clk 0:00:04.5]} 52. Rb1 {[%clk 0:00:19.1]} 52...
Rd4 {[%clk 0:00:03.8]} 53. Kg2 {[%clk 0:00:18.5]} 53... c6 {[%clk 0:00:04]} 54.
Nc2 {[%clk 0:00:17.9]} 54... Rd2 {[%clk 0:00:04.3]} 55. Ne3 {[%clk 0:00:17.5]}
55... Bg4 {[%clk 0:00:03.9]} 56. Nxg4+ {[%clk 0:00:14.5]} 56... hxg4 {[%clk
0:00:03.6]} 57. Re1 {[%clk 0:00:15.4]} 57... Ke5 {[%clk 0:00:03.6]} 58. Ra1
{[%clk 0:00:15.7]} 58... Kd4 {[%clk 0:00:04]} 59. Ra6 {[%clk 0:00:15.1]} 59...
Kc4 {[%clk 0:00:03.2]} 60. Rxc6 {[%clk 0:00:14.9]} 60... e3 {[%clk 0:00:03.2]}
61. Re6 {[%clk 0:00:15.1]} 61... Rxf2+ {[%clk 0:00:03.4]} 62. Kg1 {[%clk
0:00:15]} 62... Re2 {[%clk 0:00:03.9]} 63. c6 {[%clk 0:00:14.7]} 63... Kxb4
{[%clk 0:00:03.3]} 64. c7 {[%clk 0:00:14.2]} 64... Rc2 {[%clk 0:00:03.8]} 65.
Rxe3 {[%clk 0:00:14.6]} 65... Rxc7 {[%clk 0:00:04]} 66. Re4+ {[%clk 0:00:15.5]}
66... Kb3 {[%clk 0:00:04.2]} 67. Rxg4 {[%clk 0:00:16.4]} 67... b4 {[%clk
0:00:04.8]} 68. Rxg6 {[%clk 0:00:16.8]} 68... Kb2 {[%clk 0:00:05.2]} 69. h5
{[%clk 0:00:16.6]} 69... b3 {[%clk 0:00:05.7]} 70. h6 {[%clk 0:00:16.5]} 70...
Kc2 {[%clk 0:00:06.1]} 71. Rg7 {[%clk 0:00:16.7]} 71... Rc8 {[%clk 0:00:06.2]}
72. h7 {[%clk 0:00:15.2]} 72... Rh8 {[%clk 0:00:06.7]} 73. Rc7+ {[%clk
0:00:14.6]} 73... Kd1 {[%clk 0:00:05.9]} 74. Rd7+ {[%clk 0:00:14.2]} 74... Kc2
{[%clk 0:00:04.9]} 75. Rc7+ {[%clk 0:00:14.3]} 75... Kd1 {[%clk 0:00:05.1]} 76.
Rb7 {[%clk 0:00:14.5]} 76... Kc2 {[%clk 0:00:04.7]} 77. g4 {[%clk 0:00:14]}
77... b2 {[%clk 0:00:04.3]} 78. g5 {[%clk 0:00:14.2]} 78... b1=Q+ {[%clk
0:00:04]} 79. Rxb1 {[%clk 0:00:13.5]} 79... Rxh7 {[%clk 0:00:04.4]} 80. Rb5
{[%clk 0:00:12.2]} 80... Rg7 {[%clk 0:00:04.8]} 81. Kg2 {[%clk 0:00:12.3]} 81...
Kd3 {[%clk 0:00:05.3]} 82. Kf3 {[%clk 0:00:12.7]} 82... Kd4 {[%clk 0:00:04.2]}
83. Kf4 {[%clk 0:00:12.6]} 83... Rg8 {[%clk 0:00:03.6]} 84. Rf5 {[%clk
0:00:12.8]} 84... Rg7 {[%clk 0:00:03]} 85. Rf6 {[%clk 0:00:12.9]} 85... Rg8
{[%clk 0:00:03.2]} 86. g6 {[%clk 0:00:12.9]} 86... Kd5 {[%clk 0:00:04.1]} 87.
Kg5 {[%clk 0:00:12.4]} 87... Rh8 {[%clk 0:00:03.8]} 88. g7 {[%clk 0:00:12.2]}
88... Rg8 {[%clk 0:00:03.7]} 89. Kg6 {[%clk 0:00:12.3]} 89... Ke5 {[%clk
0:00:04.3]} 90. Kf7 {[%clk 0:00:12.2]} 90... Ra8 {[%clk 0:00:02.8]} 91. Re6+
{[%clk 0:00:11.8]} 91... Kd5 {[%clk 0:00:02.7]} 92. Re8 {[%clk 0:00:11.4]} 92...
Ra7+ {[%clk 0:00:01.9]} 93. Kf8 {[%clk 0:00:11.4]} 93... Rxg7 {[%clk 0:00:01.7]}
1-0

[Event "*** Titled Tuesday Blitz"]
[Site "Chess.com"]
[Date "2020.11.10"]
[Round "5"]
[White "wanyaland"]
[Black "vladgoncharov"]
[Result "0-1"]
[WhiteElo "2253"]
[BlackElo "2466"]
[TimeControl "180+1"]
[EndTime "10:55:19 PST"]
[Termination "vladgoncharov won by resignation"]

1. d4 {[%clk 0:03:00.9]} 1... Nf6 {[%clk 0:02:52.2]} 2. c4 {[%clk 0:03:00.9]}
2... e6 {[%clk 0:02:51.2]} 3. Nc3 {[%clk 0:03:00.5]} 3... c5 {[%clk 0:02:51.2]}
4. Qc2 {[%clk 0:03:01.4]} 4... cxd4 {[%clk 0:02:50.6]} 5. Nd1 {[%clk 0:03:00.7]}
5... Nc6 {[%clk 0:02:43.9]} 6. g3 {[%clk 0:02:59.3]} 6... d5 {[%clk 0:02:43.3]}
7. Bg2 {[%clk 0:02:54.2]} 7... Bb4+ {[%clk 0:02:37]} 8. Kf1 {[%clk 0:02:49.6]}
8... O-O {[%clk 0:02:30.2]} 9. Nf3 {[%clk 0:02:48.6]} 9... e5 {[%clk 0:02:20]}
10. cxd5 {[%clk 0:02:47.4]} 10... Qxd5 {[%clk 0:02:17.2]} 11. Bg5 {[%clk
0:02:40.4]} 11... Qd6 {[%clk 0:02:03.3]} 12. Nd2 {[%clk 0:02:27.1]} 12... Bxd2
{[%clk 0:01:59.5]} 13. Bxd2 {[%clk 0:02:25.6]} 13... Be6 {[%clk 0:01:55.5]} 14.
Rc1 {[%clk 0:02:19.8]} 14... Rac8 {[%clk 0:01:54.5]} 15. Qb1 {[%clk 0:02:20]}
15... Bd5 {[%clk 0:01:52.5]} 16. e4 {[%clk 0:02:14]} 16... dxe3 {[%clk
0:01:41.8]} 17. Bxe3 {[%clk 0:02:14.9]} 17... Bxg2+ {[%clk 0:01:39]} 18. Kxg2
{[%clk 0:02:13.8]} 18... Qd5+ {[%clk 0:01:38.1]} 19. f3 {[%clk 0:02:10.3]} 19...
e4 {[%clk 0:01:35.9]} 20. f4 {[%clk 0:02:03.6]} 20... Ng4 {[%clk 0:01:35.4]} 21.
Re1 {[%clk 0:02:02.6]} 21... Nxe3+ {[%clk 0:01:31.9]} 22. Nxe3 {[%clk 0:02:02]}
22... Qd2+ {[%clk 0:01:31.4]} 23. Re2 {[%clk 0:02:00.4]} 23... Qxe2+ {[%clk
0:01:30.4]} 0-1

[Event "*** Titled Tuesday Blitz"]
[Site "Chess.com"]
[Date "2020.11.10"]
[Round "5"]
[White "DinaBelenkaya"]
[Black "MoreChessJulia"]
[Result "0-1"]
[WhiteElo "2314"]
[BlackElo "2099"]
[TimeControl "180+1"]
[EndTime "10:55:38 PST"]
[Termination "MoreChessJulia won by checkmate"]

1. e4 {[%clk 0:03:00.9]} 1... c5 {[%clk 0:02:58.3]} 2. Nc3 {[%clk 0:03:01]} 2...
Nc6 {[%clk 0:02:54.1]} 3. g3 {[%clk 0:02:58]} 3... e6 {[%clk 0:02:52.2]} 4. Bg2
{[%clk 0:02:58.5]} 4... Nf6 {[%clk 0:02:51.6]} 5. Nf3 {[%clk 0:02:58.3]} 5...
Be7 {[%clk 0:02:51.2]} 6. d3 {[%clk 0:02:57.4]} 6... d5 {[%clk 0:02:50.9]} 7.
O-O {[%clk 0:02:53.2]} 7... d4 {[%clk 0:02:50.6]} 8. Ne2 {[%clk 0:02:52.7]} 8...
e5 {[%clk 0:02:47.3]} 9. Nh4 {[%clk 0:02:51.3]} 9... g6 {[%clk 0:02:44.3]} 10.
f4 {[%clk 0:02:49.8]} 10... Bg4 {[%clk 0:02:43.6]} 11. Nf3 {[%clk 0:02:47]}
11... Bxf3 {[%clk 0:02:42.6]} 12. Bxf3 {[%clk 0:02:45.4]} 12... Qd7 {[%clk
0:02:33.8]} 13. f5 {[%clk 0:02:43.4]} 13... h6 {[%clk 0:02:25.6]} 14. a3 {[%clk
0:02:29.4]} 14... g5 {[%clk 0:02:24.6]} 15. c3 {[%clk 0:02:01]} 15... O-O-O
{[%clk 0:02:23.3]} 16. b4 {[%clk 0:01:59.8]} 16... dxc3 {[%clk 0:02:21.1]} 17.
Nxc3 {[%clk 0:01:53.1]} 17... Qxd3 {[%clk 0:02:20]} 18. Qb3 {[%clk 0:01:50.9]}
18... cxb4 {[%clk 0:02:09.4]} 19. Qxf7 {[%clk 0:01:46.4]} 19... bxc3 {[%clk
0:02:03.3]} 20. Qe6+ {[%clk 0:01:41]} 20... Kb8 {[%clk 0:01:51.8]} 21. Bg2
{[%clk 0:01:40.7]} 21... Bc5+ {[%clk 0:01:47.2]} 22. Kh1 {[%clk 0:01:39.8]}
22... Nxe4 {[%clk 0:01:38.8]} 23. h3 {[%clk 0:01:39.2]} 23... Nxg3+ {[%clk
0:01:37.3]} 24. Kh2 {[%clk 0:01:38.3]} 24... Nxf1+ {[%clk 0:01:36.9]} 25. Bxf1
{[%clk 0:01:36.7]} 25... Qxf1 {[%clk 0:01:35.9]} 26. Rb1 {[%clk 0:01:36.6]}
26... Qg1# {[%clk 0:01:33.7]} 0-1

[Event "*** Titled Tuesday Blitz"]
[Site "Chess.com"]
[Date "2020.11.10"]
[Round "5"]
[White "Stormeman100100"]
[Black "TorFredrikKaasen"]
[Result "0-1"]
[WhiteElo "2549"]
[BlackElo "2730"]
[TimeControl "180+1"]
[EndTime "10:55:51 PST"]
[Termination "TorFredrikKaasen won by resignation"]

1. d4 {[%clk 0:03:00.9]} 1... Nf6 {[%clk 0:02:56.3]} 2. c4 {[%clk 0:02:59.8]}
2... g6 {[%clk 0:02:56.4]} 3. Nf3 {[%clk 0:03:00]} 3... Bg7 {[%clk 0:02:56.7]}
4. Nc3 {[%clk 0:02:58.2]} 4... O-O {[%clk 0:02:57]} 5. e4 {[%clk 0:02:54.4]}
5... d6 {[%clk 0:02:57.4]} 6. Be2 {[%clk 0:02:52.8]} 6... e5 {[%clk 0:02:57.7]}
7. Be3 {[%clk 0:02:51.5]} 7... exd4 {[%clk 0:02:56]} 8. Nxd4 {[%clk 0:02:49.7]}
8... Re8 {[%clk 0:02:56.7]} 9. f3 {[%clk 0:02:48.7]} 9... c6 {[%clk 0:02:57.4]}
10. Qd2 {[%clk 0:02:42.1]} 10... d5 {[%clk 0:02:57.2]} 11. exd5 {[%clk
0:02:42.3]} 11... cxd5 {[%clk 0:02:58.1]} 12. c5 {[%clk 0:02:41.1]} 12... Nbd7
{[%clk 0:02:45.8]} 13. Ndb5 {[%clk 0:02:33.5]} 13... Qe7 {[%clk 0:02:16.9]} 14.
Nc7 {[%clk 0:01:52.9]} 14... Qxe3 {[%clk 0:02:15.8]} 15. Qxe3 {[%clk 0:01:51.9]}
15... Rxe3 {[%clk 0:02:16.7]} 16. Nxa8 {[%clk 0:01:52.4]} 16... d4 {[%clk
0:02:09.9]} 17. Nd1 {[%clk 0:01:47.5]} 17... Re7 {[%clk 0:02:03.7]} 18. Kf2
{[%clk 0:01:41.7]} 18... Nxc5 {[%clk 0:01:59.8]} 19. Rc1 {[%clk 0:01:38]} 19...
d3 {[%clk 0:01:56.4]} 20. Bf1 {[%clk 0:01:36.1]} 20... Nd5 {[%clk 0:01:52.4]}
21. Ne3 {[%clk 0:01:21]} 21... Bd4 {[%clk 0:01:50.9]} 0-1

[Event "*** Titled Tuesday Blitz"]
[Site "Chess.com"]
[Date "2020.11.10"]
[Round "5"]
[White "Semen_Khanin"]
[Black "sara_khm"]
[Result "1-0"]
[WhiteElo "2786"]
[BlackElo "2586"]
[TimeControl "180+1"]
[EndTime "10:55:59 PST"]
[Termination "Semen_Khanin won by resignation"]

1. c4 {[%clk 0:03:00.9]} 1... Nf6 {[%clk 0:02:57.6]} 2. Nc3 {[%clk 0:03:00.8]}
2... e6 {[%clk 0:02:57.6]} 3. e4 {[%clk 0:03:00.2]} 3... d5 {[%clk 0:02:57.9]}
4. cxd5 {[%clk 0:02:57.5]} 4... exd5 {[%clk 0:02:57.7]} 5. e5 {[%clk 0:02:58]}
5... Ne4 {[%clk 0:02:57.9]} 6. Nf3 {[%clk 0:02:55.7]} 6... Nc6 {[%clk
0:02:54.8]} 7. h3 {[%clk 0:02:45.9]} 7... Bc5 {[%clk 0:02:51.1]} 8. d4 {[%clk
0:02:45.4]} 8... Bb4 {[%clk 0:02:49.2]} 9. Qb3 {[%clk 0:02:35.3]} 9... a5 {[%clk
0:02:43.4]} 10. Bd3 {[%clk 0:02:29]} 10... a4 {[%clk 0:02:30.1]} 11. Qc2 {[%clk
0:02:27.2]} 11... f5 {[%clk 0:01:50.3]} 12. O-O {[%clk 0:02:20.9]} 12... O-O
{[%clk 0:01:48.8]} 13. Nxd5 {[%clk 0:02:19.5]} 13... Kh8 {[%clk 0:01:27.1]} 14.
Bc4 {[%clk 0:01:34.3]} 14... Be6 {[%clk 0:01:15.5]} 15. Nf4 {[%clk 0:01:34]}
15... Bxc4 {[%clk 0:01:11.6]} 16. Qxc4 {[%clk 0:01:34.3]} 16... Qd7 {[%clk
0:01:05.9]} 17. d5 {[%clk 0:01:31.9]} 1-0

[Event "*** Titled Tuesday Blitz"]
[Site "Chess.com"]
[Date "2020.11.10"]
[Round "5"]
[White "ailime26"]
[Black "Nuvas"]
[Result "0-1"]
[WhiteElo "1974"]
[BlackElo "2339"]
[TimeControl "180+1"]
[EndTime "10:55:59 PST"]
[Termination "Nuvas won by resignation"]

1. e4 {[%clk 0:02:04.9]} 1... c5 {[%clk 0:02:58.5]} 2. Nf3 {[%clk 0:02:02.7]}
2... d6 {[%clk 0:02:58.7]} 3. d4 {[%clk 0:02:02.2]} 3... cxd4 {[%clk 0:02:59]}
4. Nxd4 {[%clk 0:02:01.8]} 4... Nf6 {[%clk 0:02:59.7]} 5. Nc3 {[%clk 0:02:01.3]}
5... a6 {[%clk 0:03:00.4]} 6. Be3 {[%clk 0:02:00.8]} 6... e5 {[%clk 0:02:58.6]}
7. Nb3 {[%clk 0:01:58.7]} 7... Be6 {[%clk 0:02:58.6]} 8. f3 {[%clk 0:01:57.8]}
8... h5 {[%clk 0:02:58.6]} 9. Qd2 {[%clk 0:01:56.9]} 9... Nbd7 {[%clk
0:02:58.4]} 10. O-O-O {[%clk 0:01:55.8]} 10... Rc8 {[%clk 0:02:57.8]} 11. Nd5
{[%clk 0:01:54.2]} 11... Bxd5 {[%clk 0:02:51.5]} 12. exd5 {[%clk 0:01:53.1]}
12... Nb6 {[%clk 0:02:52.1]} 13. Bxb6 {[%clk 0:01:42]} 13... Qxb6 {[%clk
0:02:53]} 14. f4 {[%clk 0:01:41.1]} 14... g6 {[%clk 0:02:45.4]} 15. fxe5 {[%clk
0:01:40.2]} 15... Bh6 {[%clk 0:02:45.2]} 16. exf6 {[%clk 0:01:29.3]} 16... Bxd2+
{[%clk 0:02:43.9]} 17. Rxd2 {[%clk 0:01:28.6]} 17... O-O {[%clk 0:02:40.8]} 18.
g4 {[%clk 0:01:26.3]} 18... hxg4 {[%clk 0:02:36.6]} 19. h4 {[%clk 0:01:22]}
19... Rfe8 {[%clk 0:02:21.8]} 20. Bd3 {[%clk 0:01:18.8]} 20... Re3 {[%clk
0:02:15.7]} 21. h5 {[%clk 0:01:17.3]} 21... Rh3 {[%clk 0:02:16]} 22. Rxh3 {[%clk
0:01:03]} 22... gxh3 {[%clk 0:02:16.9]} 23. hxg6 {[%clk 0:01:02.7]} 23... Qg1+
{[%clk 0:02:14.3]} 24. Rd1 {[%clk 0:01:01.4]} 24... h2 {[%clk 0:02:14.1]} 25.
gxf7+ {[%clk 0:00:59.8]} 25... Kxf7 {[%clk 0:02:13.4]} 0-1

[Event "*** Titled Tuesday Blitz"]
[Site "Chess.com"]
[Date "2020.11.10"]
[Round "5"]
[White "Piotrek1979"]
[Black "NotFischer"]
[Result "1-0"]
[WhiteElo "2456"]
[BlackElo "2252"]
[TimeControl "180+1"]
[EndTime "10:56:02 PST"]
[Termination "Piotrek1979 won by resignation"]

1. Nf3 {[%clk 0:03:00.9]} 1... Nf6 {[%clk 0:02:59.7]} 2. g3 {[%clk 0:02:59.9]}
2... d5 {[%clk 0:02:59.6]} 3. Bg2 {[%clk 0:02:59.2]} 3... e6 {[%clk 0:02:59.7]}
4. O-O {[%clk 0:02:59.6]} 4... Be7 {[%clk 0:02:59.9]} 5. c4 {[%clk 0:03:00.1]}
5... c6 {[%clk 0:03:00]} 6. b3 {[%clk 0:03:00.4]} 6... O-O {[%clk 0:02:59.9]} 7.
Bb2 {[%clk 0:03:00.9]} 7... Nbd7 {[%clk 0:02:59.7]} 8. Qc2 {[%clk 0:03:00.6]}
8... b6 {[%clk 0:02:59.3]} 9. d3 {[%clk 0:02:50.5]} 9... Bb7 {[%clk 0:02:59]}
10. Nbd2 {[%clk 0:02:50]} 10... Rc8 {[%clk 0:02:58.9]} 11. e3 {[%clk 0:02:49.7]}
11... Qc7 {[%clk 0:02:54.5]} 12. Rac1 {[%clk 0:02:48.7]} 12... Rfd8 {[%clk
0:02:53.3]} 13. a3 {[%clk 0:02:47.7]} 13... c5 {[%clk 0:02:51.2]} 14. Qb1 {[%clk
0:02:41.2]} 14... Qb8 {[%clk 0:02:50.1]} 15. Qa1 {[%clk 0:02:40.7]} 15... Qa8
{[%clk 0:02:44.7]} 16. Rfd1 {[%clk 0:02:36.8]} 16... Bf8 {[%clk 0:02:40]} 17.
Ne1 {[%clk 0:02:28.9]} 17... dxc4 {[%clk 0:02:32.5]} 18. bxc4 {[%clk 0:02:27.4]}
18... Bxg2 {[%clk 0:02:31.5]} 19. Nxg2 {[%clk 0:02:28.3]} 19... Qc6 {[%clk
0:01:42.6]} 20. a4 {[%clk 0:02:23.3]} 20... Be7 {[%clk 0:01:24.9]} 21. h3 {[%clk
0:02:23]} 21... Nf8 {[%clk 0:01:21.1]} 22. Rc3 {[%clk 0:02:08.8]} 22... N6d7
{[%clk 0:01:16.1]} 23. Ra3 {[%clk 0:02:03.4]} 23... Bf6 {[%clk 0:01:11.8]} 24.
Ne4 {[%clk 0:02:02.4]} 24... Bxb2 {[%clk 0:01:10.5]} 25. Qxb2 {[%clk 0:02:03.3]}
25... Ne5 {[%clk 0:01:06.3]} 26. Qxe5 {[%clk 0:01:59.7]} 26... Ng6 {[%clk
0:01:01.6]} 27. Qa1 {[%clk 0:01:57.5]} 1-0